bitfinex/quotes_SOLUSD_20241213
["timestamp","ask_amount","ask_price","bid_price","bid_amount"]
[1734091337599,20.0,226.08,225.97,8.21621787]
[1734091337805,8.21621787,226.04,225.98,8.21621787]
[1734091338314,8.21621787,226.05,225.99,8.21621787]
[1734091338708,20.0,226.08,226.0,8.21621787]
[1734091338895,8.21621787,226.06,226.0,8.21621787]
[1734091340816,8.21621787,226.06,225.99,8.21621787]
[1734091342515,8.21621787,226.06,226.0,8.21621787]
[1734091345720,8.21621787,226.06,225.99,8.21621787]
[1734091351516,12.6605,226.12,226.01,8.21621787]
[1734091351724,8.21621787,226.1,226.03,8.21621787]
[1734091351907,36.4387959,226.1,226.03,8.21621787]
[1734091352525,28.22257803,226.1,226.04,8.21621787]
[1734091353708,36.4387959,226.1,226.03,8.21621787]
[1734091354626,36.4387959,226.1,226.04,8.21621787]
[1734091356743,28.22257803,226.1,226.04,8.21621787]
[1734091357341,36.4387959,226.1,226.04,8.21621787]
[1734091360643,8.21621787,226.09,226.03,8.34170787]
[1734091360845,8.21621787,226.09,226.04,23.902374]
[1734091361138,8.21621787,226.06,226.01,1.5787]
[1734091361346,8.21621787,226.06,226.01,23.902374]
[1734091362740,8.21621787,226.06,225.98,20.0]
[1734091362927,8.21621787,226.06,225.99,8.21621787]
[1734091364058,8.21621787,226.06,225.96,2.32672489]
[1734091364268,8.21621787,226.05,225.99,8.21621787]
[1734091364931,8.21621787,226.07,226.01,8.21621787]
[1734091366257,36.4387959,226.1,226.04,8.21621787]
[1734091366472,8.21621787,226.08,226.02,24.027864]
[1734091366662,8.21621787,226.09,226.02,32.24408187]
[1734091367029,28.22257803,226.1,226.03,8.21621787]
[1734091367369,28.22257803,226.1,226.07,8.21621787]
[1734091367563,8.21621787,226.14,226.07,8.21621787]
[1734091367860,8.21621787,226.15,226.09,8.21621787]
[1734091368653,8.21621787,226.13,226.08,23.902374]
[1734091370231,8.21621787,226.12,226.07,0.12549]
[1734091370558,8.21621787,226.12,226.05,43.902374]
[1734091370559,8.21621787,226.12,226.06,8.34170787]
[1734091370931,8.21621787,226.11,226.06,0.12549]
[1734091375032,8.21621787,226.12,226.06,8.34170787]
[1734091379354,8.21621787,226.12,226.06,0.12549]
[1734091379546,8.21621787,226.11,226.06,0.12549]
[1734091379963,8.21621787,226.11,226.05,43.776884]
[1734091380140,8.21621787,226.11,226.05,51.99310187]
[1734091380762,8.21621787,226.1,226.05,23.776884]
[1734091381061,8.21621787,226.08,226.04,1.6493]
[1734091381356,8.21621787,226.09,226.03,8.34170787]
[1734091383360,11.0545,226.16,226.04,8.21621787]
[1734091383550,8.21621787,226.1,226.04,8.21621787]
[1734091387763,8.21621787,226.09,226.03,32.11859187]
[1734091388753,8.21621787,226.09,226.03,30.11045984]
[1734091389866,8.21621787,226.08,226.03,21.89424197]
[1734091390460,8.21621787,226.09,226.03,30.11045984]
[1734091392264,8.21621787,226.09,226.03,21.89424197]
[1734091392462,8.21621787,226.08,226.03,21.89424197]
[1734091394256,8.21621787,226.09,226.03,30.11045984]
[1734091399663,8.21621787,226.08,226.02,14.81291787]
[1734091400371,8.21621787,226.09,226.03,8.21621787]
[1734091402878,8.21621787,226.08,226.03,23.776884]
[1734091409165,8.21621787,226.07,226.02,6.5967]
[1734091412293,8.21621787,226.06,226.02,6.5967]
[1734091412797,8.21621787,226.05,225.99,1.544]
[1734091413084,8.21621787,226.04,225.99,1.544]
[1734091413657,8.21621787,226.03,225.99,1.544]
[1734091415074,8.21621787,226.02,225.96,14.75061787]
[1734091416704,8.21621787,226.01,225.96,6.5344]
[1734091418478,8.21621787,226.02,225.96,14.75061787]
[1734091418679,20.0,226.08,225.98,8.21621787]
[1734091418877,8.21621787,226.05,225.99,8.21621787]
[1734091420686,20.0,226.08,225.99,8.21621787]
[1734091420991,81.6,226.11,226.02,8.21621787]
[1734091421175,11.056,226.13,226.02,8.21621787]
[1734091421176,8.21621787,226.08,226.02,8.21621787]
[1734091421990,11.056,226.13,226.03,23.776884]
[1734091422289,8.21621787,226.07,226.01,9.87651787]
[1734091422874,11.056,226.13,226.02,8.21621787]
[1734091423073,8.21621787,226.1,226.04,8.21621787]
[1734091424207,8.21621787,226.09,226.03,8.21621787]
[1734091431195,8.21621787,226.08,226.02,31.99310187]
[1734091431501,8.21621787,226.07,226.02,23.776884]
[1734091442195,8.21621787,226.1,226.03,14.50579787]
[1734091442395,8.21621787,226.1,226.04,31.99310187]
[1734091443514,8.21621787,226.11,226.05,8.21621787]
[1734091443690,8.21621787,226.1,226.04,23.776884]
[1734091444010,8.21621787,226.09,226.04,23.776884]
[1734091448619,43.91897148,226.16,226.04,23.776884]
[1734091448620,8.21621787,226.08,226.04,23.776884]
[1734091448799,8.21621787,226.06,226.03,6.0386]
[1734091449003,8.21621787,226.06,226.02,23.776884]
[1734091449838,8.21621787,226.06,226.02,23.39602401]
[1734091450215,8.21621787,226.05,226.01,1.6603]
[1734091450521,8.21621787,226.03,226.01,1.6603]
[1734091450812,8.21621787,226.04,226.01,1.6603]
[1734091451193,8.21621787,226.04,225.99,0.12549]
[1734091451822,8.21621787,226.04,225.98,6.4343]
[1734091452004,8.21621787,226.03,225.98,6.4343]
[1734091454315,8.21621787,226.02,225.98,6.4343]
[1734091455228,8.21621787,226.02,225.96,1.549]
[1734091455229,8.21621787,226.0,225.96,1.549]
[1734091458814,8.21621787,226.01,225.96,1.549]
[1734091459631,20.0,226.06,225.97,32.24408187]
[1734091459929,8.21621787,226.03,225.97,32.24408187]
[1734091460707,11.0579,226.09,225.98,8.21621787]
[1734091460708,8.21621787,226.04,225.98,8.21621787]
[1734091460911,8.21621787,226.07,226.01,8.21621787]
[1734091461327,8.21621787,226.05,225.99,23.776884]
[1734091461633,8.21621787,226.04,225.99,23.776884]
[1734091462237,8.21621787,226.05,225.99,8.21621787]
[1734091462835,8.21621787,226.06,226.0,31.99310187]
[1734091464012,8.21621787,226.05,226.0,23.776884]
[1734091469351,28.21757015,226.1,226.0,23.776884]
[1734091469650,8.21621787,226.05,226.0,23.776884]
[1734091470333,28.21757015,226.1,226.0,30.128784]
[1734091470529,8.21621787,226.06,226.0,38.34500187]
[1734091475557,8.21621787,226.05,226.0,30.128784]
[1734091488044,28.21757015,226.1,226.0,30.128784]
[1734091488045,8.21621787,226.04,226.0,6.3519]
[1734091488238,8.21621787,226.03,226.0,6.3519]
[1734091489624,8.21621787,226.03,225.96,9.76521787]
[1734091489830,8.21621787,226.03,225.97,23.776884]
[1734091493535,8.21621787,226.02,225.97,23.776884]
[1734091497358,8.21621787,226.03,225.97,31.99310187]
[1734091498437,8.21621787,226.04,225.98,8.21621787]
[1734091499548,8.21621787,226.01,225.96,1.549]
[1734091499840,8.21621787,225.99,225.96,1.549]
[1734091502064,8.21621787,226.0,225.96,1.549]
[1734091502381,28.21757015,226.1,225.99,8.21621787]
[1734091502568,8.21621787,226.06,226.0,8.21621787]
[1734091504153,28.21757015,226.1,226.01,31.99310187]
[1734091504339,8.21621787,226.09,226.03,8.21621787]
[1734091504573,8.21621787,226.09,226.03,9.86891787]
[1734091506360,28.21757015,226.1,226.04,32.90756456]
[1734091508658,28.21757015,226.1,226.05,8.21621787]
[1734091508856,28.21757015,226.1,226.06,8.21621787]
[1734091509068,28.21757015,226.1,226.07,23.776884]
[1734091509386,11.053,226.19,226.08,8.21621787]
[1734091509568,8.21621787,226.14,226.08,8.21621787]
[1734091509784,11.053,226.19,226.08,23.776884]
[1734091509785,8.21621787,226.13,226.08,23.776884]
[1734091510067,8.21621787,226.12,226.07,23.776884]
[1734091512167,8.21621787,226.16,226.1,31.99310187]
[1734091514284,8.21621787,226.17,226.11,8.21621787]
[1734091514464,8.21621787,226.17,226.12,23.776884]
[1734091514974,40.64019071,226.25,226.14,23.776884]
[1734091515185,8.21621787,226.2,226.14,31.99310187]
[1734091516551,40.64019071,226.25,226.14,31.99310187]
[1734091516754,8.21621787,226.2,226.14,31.99310187]
[1734091516968,8.21621787,226.2,226.13,31.99310187]
[1734091517162,8.21621787,226.19,226.13,31.99310187]
[1734091517973,40.64019071,226.25,226.13,31.99310187]
[1734091518269,40.64019071,226.25,226.14,8.46719787]
[1734091518478,8.21621787,226.2,226.15,23.776884]
[1734091519662,40.64019071,226.25,226.15,23.776884]
[1734091519875,8.21621787,226.21,226.15,23.776884]
[1734091520055,8.21621787,226.21,226.16,1.556]
[1734091520372,8.21621787,226.21,226.17,23.776884]
[1734091521261,8.21621787,226.22,226.17,23.776884]
[1734091522863,8.21621787,226.23,226.17,23.776884]
[1734091523180,8.21621787,226.24,226.17,31.99310187]
[1734091523879,8.21621787,226.23,226.17,23.776884]
[1734091524664,8.21621787,226.2,226.16,1.556]
[1734091525584,8.21621787,226.19,226.16,1.556]
[1734091525877,8.21621787,226.18,226.16,1.556]
[1734091526082,11.0492,226.26,226.16,1.556]
[1734091526281,8.21621787,226.19,226.16,1.556]
[1734091526672,11.0492,226.26,226.16,1.556]
[1734091526977,8.21621787,226.19,226.16,1.556]
[1734091527157,8.21621787,226.18,226.12,8.21621787]
[1734091527359,8.21621787,226.14,226.11,1.5525]
[1734091527578,8.21621787,226.13,226.11,1.5525]
[1734091528082,8.21621787,226.14,226.11,1.5525]
[1734091529782,8.21621787,226.16,226.11,1.5525]
[1734091530272,8.21621787,226.17,226.11,1.5525]
[1734091530474,8.21621787,226.16,226.11,1.5525]
[1734091530681,8.21621787,226.15,226.11,1.5525]
[1734091531668,8.21621787,226.14,226.1,6.0752]
[1734091531862,8.21621787,226.14,226.08,23.776884]
[1734091532057,8.21621787,226.14,226.08,8.21621787]
[1734091533061,11.0521,226.2,226.08,8.21621787]
[1734091533267,8.21621787,226.15,226.09,8.21621787]
[1734091535061,11.0507,226.23,226.11,8.21621787]
[1734091535262,8.21621787,226.18,226.12,8.21621787]
[1734091537382,8.21621787,226.18,226.11,8.21621787]
[1734091538284,8.21621787,226.17,226.11,8.21621787]
[1734091539480,8.21621787,226.18,226.11,8.21621787]
[1734091539785,8.21621787,226.16,226.1,20.0]
[1734091539960,8.21621787,226.16,226.1,8.21621787]
[1734091540493,8.21621787,226.17,226.1,8.21621787]
[1734091541460,8.21621787,226.17,226.11,8.21621787]
[1734091542386,11.0507,226.23,226.12,8.21621787]
[1734091542700,8.21621787,226.2,226.14,8.21621787]
[1734091546776,8.21621787,226.21,226.15,1.6597]
[1734091546975,8.21621787,226.21,226.15,9.87591787]
[1734091547404,28.20743267,226.25,226.15,9.87591787]
[1734091547590,8.21621787,226.21,226.15,9.87591787]
[1734091548376,8.21621787,226.22,226.16,8.21621787]
[1734091550194,8.21621787,226.21,226.15,9.87591787]
[1734091551180,8.21621787,226.22,226.16,8.21621787]
[1734091552002,8.21621787,226.21,226.15,9.87591787]
[1734091553495,28.20743267,226.25,226.16,8.21621787]
[1734091553697,8.21621787,226.22,226.16,8.21621787]
[1734091556279,28.20743267,226.25,226.15,1.6597]
[1734091556280,8.21621787,226.19,226.15,1.6597]
[1734091556483,8.21621787,226.17,226.15,1.6597]
[1734091556678,8.21621787,226.17,226.11,8.21621787]
[1734091557079,8.21621787,226.17,226.09,8.1935]
[1734091557380,8.21621787,226.16,226.09,16.40971787]
[1734091557689,8.21621787,226.16,226.1,8.21621787]
[1734091559096,28.20743267,226.25,226.15,8.21621787]
[1734091559279,8.21621787,226.22,226.16,8.21621787]
[1734091559997,8.21621787,226.21,226.15,8.21621787]
[1734091561382,8.21621787,226.22,226.16,8.21621787]
[1734091561782,36.42365054,226.25,226.18,8.21621787]
[1734091562095,36.42365054,226.25,226.12,0.66317607]
[1734091562096,36.42365054,226.25,226.19,8.21621787]
[1734091562487,28.20743267,226.25,226.19,8.21621787]
[1734091562693,36.42365054,226.25,226.19,8.21621787]
[1734091563211,28.20743267,226.25,226.2,8.21621787]
[1734091566594,8.21621787,226.24,226.17,7.9644]
[1734091567001,8.21621787,226.24,226.18,8.21621787]
[1734091567401,36.42365054,226.25,226.19,8.21621787]
[1734091567787,11.0456,226.34,226.24,8.21621787]
[1734091568004,8.2913,226.37,226.26,8.21621787]
[1734091568005,8.21621787,226.32,226.26,8.21621787]
[1734091569192,8.21621787,226.31,226.25,8.21621787]
[1734091570195,8.21621787,226.3,226.2,20.0]
[1734091570400,8.21621787,226.3,226.23,8.21621787]
[1734091571710,8.21621787,226.3,226.2,20.0]
[1734091571711,8.21621787,226.28,226.2,20.0]
[1734091571896,8.21621787,226.28,226.21,8.21621787]
[1734091573504,8.21621787,226.25,226.2,20.0]
[1734091573815,8.21621787,226.25,226.17,7.9644]
[1734091574116,8.21621787,226.23,226.17,9.79041787]
[1734091574700,20.0,226.29,226.18,8.21621787]
[1734091574914,8.21621787,226.24,226.18,8.21621787]
[1734091575307,11.0467,226.31,226.18,8.21621787]
[1734091575506,8.21621787,226.24,226.18,8.21621787]
[1734091576499,11.0467,226.31,226.19,8.21621787]
[1734091576718,8.21621787,226.25,226.19,8.21621787]
[1734091577810,11.0467,226.31,226.19,8.21621787]
[1734091578006,8.21621787,226.26,226.19,8.21621787]
[1734091579205,8.21621787,226.24,226.17,1.5742]
[1734091579407,8.21621787,226.24,226.18,8.21621787]
[1734091580027,8.21621787,226.25,226.19,8.21621787]
[1734091586920,11.0467,226.31,226.19,8.21621787]
[1734091587120,8.21621787,226.26,226.19,8.21621787]
[1734091588041,8.21621787,226.25,226.18,8.21621787]
[1734091588328,8.21621787,226.24,226.18,8.21621787]
[1734091588531,8.21621787,226.23,226.17,1.5742]
[1734091588922,8.21621787,226.24,226.17,9.79041787]
[1734091594030,8.21621787,226.23,226.17,9.79041787]
[1734091594813,11.0484,226.28,226.17,9.79041787]
[1734091595034,8.21621787,226.24,226.17,9.79041787]
[1734091596510,11.0484,226.28,226.17,9.79041787]
[1734091596511,8.21621787,226.25,226.18,8.21621787]
[1734091599561,8.21621787,226.25,226.19,8.21621787]
[1734091600425,8.21621787,226.26,226.19,8.21621787]
[1734091601153,81.6,226.33,226.22,8.21621787]
[1734091601350,8.21621787,226.29,226.23,8.21621787]
[1734091605729,11.0454,226.34,226.23,8.21621787]
[1734091606057,8.21621787,226.28,226.23,8.21621787]
[1734091606853,8.21621787,226.28,226.22,8.21621787]
[1734091607063,8.21621787,226.27,226.21,8.21621787]
[1734091607932,8.21621787,226.25,226.19,6.4112]
[1734091608115,8.21621787,226.24,226.19,6.4112]
[1734091609326,11.0469,226.31,226.19,6.4112]
[1734091609327,8.21621787,226.23,226.19,6.4112]
[1734091609839,8.21621787,226.23,226.17,9.79041787]
[1734091610548,8.21621787,226.22,226.17,1.5742]
[1734091611764,8.21621787,226.23,226.17,1.5742]
[1734091611964,8.21621787,226.22,226.17,1.5742]
[1734091617350,23.902374,226.3,226.17,9.79041787]
[1734091617554,8.21621787,226.23,226.17,9.79041787]
[1734091617745,8.21621787,226.24,226.18,8.21621787]
[1734091620455,12.78832789,226.31,226.18,8.21621787]
[1734091620651,8.21621787,226.23,226.17,9.79041787]
[1734091620857,8.21621787,226.24,226.18,8.21621787]
[1734091622458,8.21621787,226.23,226.17,9.79041787]
[1734091622656,8.21621787,226.23,226.17,1.5742]
[1734091622863,8.21621787,226.23,226.17,9.79041787]
[1734091626078,8.21621787,226.24,226.18,8.21621787]
[1734091626468,12.78832789,226.31,226.19,8.21621787]
[1734091626652,12.78832789,226.31,226.17,1.5742]
[1734091626653,11.0467,226.31,226.21,8.21621787]
[1734091626851,8.21621787,226.27,226.21,8.21621787]
[1734091627060,8.21621787,226.28,226.22,8.21621787]
[1734091628684,8.21621787,226.29,226.23,8.21621787]
[1734091630371,8.21621787,226.3,226.24,8.21621787]
[1734091630674,11.0439,226.37,226.25,9.75071787]
[1734091630980,8.21621787,226.32,226.26,8.21621787]
[1734091632072,8.21621787,226.3,226.25,1.5345]
[1734091632274,11.0439,226.37,226.25,9.75071787]
[1734091632482,8.21621787,226.31,226.25,9.75071787]
[1734091633057,8.21621787,226.3,226.25,1.5345]
[1734091634166,11.0439,226.37,226.25,9.75071787]
[1734091634364,8.21621787,226.32,226.25,9.75071787]
[1734091635755,8.21621787,226.31,226.25,9.75071787]
[1734091635954,8.21621787,226.31,226.25,1.5345]
[1734091636764,11.0439,226.37,226.25,1.5345]
[1734091636969,8.21621787,226.3,226.25,1.5345]
[1734091638980,8.21621787,226.31,226.25,1.5345]
[1734091642663,7.69257087,226.31,226.25,1.5345]
[1734091644261,7.39257087,226.31,226.25,1.5345]
[1734091647483,11.0439,226.37,226.27,8.21621787]
[1734091647787,0.5352338,226.39,226.28,14.54851787]
[1734091647970,0.5352338,226.39,226.29,8.21621787]
[1734091648159,8.21621787,226.35,226.29,8.21621787]
[1734091648869,8.21621787,226.35,226.28,14.54851787]
[1734091649063,8.21621787,226.34,226.28,6.3323]
[1734091649870,8.21621787,226.32,226.28,6.3323]
[1734091650076,8.21621787,226.31,226.28,6.3323]
[1734091650691,8.21621787,226.32,226.28,6.3323]
[1734091656490,43.90837148,226.38,226.28,6.3323]
[1734091656789,8.21621787,226.32,226.28,6.3323]
[1734091659182,8.21621787,226.29,226.25,1.5345]
[1734091659383,8.21621787,226.27,226.25,1.5345]
[1734091659904,8.21621787,226.26,226.25,1.5345]
[1734091660073,8.21621787,226.26,226.22,6.0746]
[1734091660274,8.21621787,226.25,226.22,6.0746]
[1734091661504,8.21621787,226.26,226.22,6.0746]
[1734091662083,8.21621787,226.27,226.22,6.0746]
[1734091664702,11.0466,226.32,226.22,6.0746]
[1734091664901,8.21621787,226.27,226.22,6.0746]
[1734091665493,11.0466,226.32,226.22,6.0746]
[1734091665692,8.21621787,226.27,226.22,6.0746]
[1734091667985,8.21621787,226.25,226.22,6.0746]
[1734091668184,109.79425024,226.35,226.22,6.0746]
[1734091668407,8.21621787,226.32,226.25,8.21621787]
[1734091670803,8.21621787,226.31,226.24,8.21621787]
[1734091671691,8.21621787,226.3,226.24,8.21621787]
[1734091673409,8.21621787,226.3,226.23,8.21621787]
[1734091676593,8.21621787,226.3,226.24,8.21621787]
[1734091678510,8.21621787,226.3,226.23,8.21621787]
[1734091680713,28.19425024,226.35,226.24,8.21621787]
[1734091680905,8.21621787,226.32,226.26,8.21621787]
[1734091682993,28.19425024,226.35,226.26,8.21621787]
[1734091683193,28.19425024,226.35,226.29,8.21621787]
[1734091683403,28.19425024,226.35,226.3,8.21621787]
[1734091684309,36.41046811,226.35,226.29,14.50581787]
[1734091685603,28.19425024,226.35,226.29,14.50581787]
[1734091685792,36.41046811,226.35,226.3,1.509]
[1734091687115,0.5352338,226.39,226.3,1.509]
[1734091687889,8.21621787,226.35,226.3,1.509]
[1734091688295,0.5352338,226.39,226.3,1.509]
[1734091688499,8.21621787,226.36,226.3,9.72521787]
[1734091691523,8.21621787,226.37,226.31,8.21621787]
[1734091693020,8.75145167,226.39,226.32,8.21621787]
[1734091693219,8.75145167,226.39,226.32,8.87881662]
[1734091694224,0.5352338,226.39,226.33,8.21621787]
[1734091695329,8.21621787,226.37,226.32,20.0]
[1734091696027,8.21621787,226.38,226.32,28.21621787]
[1734091700419,0.5352338,226.39,226.34,8.21621787]
[1734091702222,8.75145167,226.39,226.32,20.0]
[1734091702408,8.75145167,226.39,226.33,8.21621787]
[1734091703605,8.21621787,226.38,226.32,20.0]
[1734091703807,8.21621787,226.37,226.32,20.0]
[1734091704029,8.21621787,226.36,226.32,20.0]
[1734091704429,0.5352338,226.39,226.32,20.0]
[1734091704430,8.21621787,226.37,226.32,20.0]
[1734091705423,0.5352338,226.39,226.32,20.0]
[1734091705424,8.21621787,226.38,226.32,28.21621787]
[1734091707317,8.21621787,226.37,226.32,20.0]
[1734091708116,8.21621787,226.36,226.32,20.0]
[1734091709435,8.21621787,226.37,226.32,20.0]
[1734091712014,8.21621787,226.36,226.32,20.0]
[1734091714634,8.21621787,226.34,226.3,1.509]
[1734091714830,8.21621787,226.33,226.3,1.509]
[1734091715034,0.5352338,226.39,226.3,1.509]
[1734091715035,8.21621787,226.32,226.3,1.509]
[1734091715332,8.21621787,226.32,226.29,6.2896]
[1734091715741,8.21621787,226.31,226.25,9.80941787]
[1734091716034,8.21621787,226.29,226.25,1.5932]
[1734091716238,8.21621787,226.3,226.25,1.5932]
[1734091716413,8.21621787,226.31,226.25,9.80941787]
[1734091716810,8.21621787,226.32,226.25,9.80941787]
[1734091717549,8.21621787,226.34,226.28,8.21621787]
[1734091717714,0.5352338,226.39,226.28,8.21621787]
[1734091718028,8.21621787,226.37,226.3,8.21621787]
[1734091718233,0.5352338,226.39,226.3,8.21621787]
[1734091718419,8.21621787,226.37,226.3,8.21621787]
[1734091719635,8.21621787,226.37,226.31,8.21621787]
[1734091721131,8.21621787,226.37,226.3,8.21621787]
[1734091722651,8.21621787,226.37,226.31,8.21621787]
[1734091723342,8.21621787,226.37,226.31,14.23001787]
[1734091723520,0.5352338,226.39,226.32,9.81471787]
[1734091723924,8.21621787,226.38,226.32,9.81471787]
[1734091724150,8.75145167,226.39,226.33,8.21621787]
[1734091725424,8.75145167,226.39,226.32,1.5985]
[1734091725425,0.5352338,226.39,226.34,8.21621787]
[1734091725623,0.5352338,226.39,226.32,2.26113218]
[1734091725624,0.5352338,226.39,226.35,8.21621787]
[1734091726440,0.5352338,226.39,226.34,8.21621787]
[1734091730943,0.5352338,226.39,226.33,32.24408187]
[1734091730944,8.75145167,226.39,226.33,32.24408187]
[1734091731729,8.75145167,226.39,226.33,8.21621787]
[1734091731934,8.21621787,226.38,226.32,9.81471787]
[1734091732462,8.21621787,226.37,226.32,1.5985]
[1734091732842,0.5352338,226.39,226.34,8.21621787]
[1734091733042,0.5352338,226.39,226.35,8.21621787]
[1734091733249,8.75145167,226.39,226.33,32.90677601]
[1734091736965,8.75145167,226.39,226.33,32.24408187]
[1734091737161,0.5352338,226.39,226.33,32.24408187]
[1734091739959,8.75145167,226.39,226.32,1.5985]
[1734091740161,8.21621787,226.38,226.32,9.81471787]
[1734091741869,0.5352338,226.39,226.32,9.81471787]
[1734091742065,8.21621787,226.38,226.32,9.81471787]
[1734091743249,8.75145167,226.39,226.32,9.81471787]
[1734091746578,0.5352338,226.39,226.33,8.21621787]
[1734091746763,8.75145167,226.39,226.33,8.21621787]
[1734091747876,8.21621787,226.36,226.29,24.027864]
[1734091748054,8.21621787,226.36,226.3,8.21621787]
[1734091752376,0.5352338,226.39,226.25,1.601]
[1734091752377,8.21621787,226.32,226.25,1.601]
[1734091752573,8.21621787,226.31,226.25,9.81721787]
[1734091753858,8.21621787,226.3,226.23,0.66285851]
[1734091754061,8.21621787,226.29,226.25,20.0]
[1734091754779,8.21621787,226.26,226.2,6.94982401]
[1734091755067,8.21621787,226.24,226.19,6.94982401]
[1734091756254,8.21621787,226.24,226.18,6.94982401]
[1734091757062,8.21621787,226.24,226.17,15.16604188]
[1734091757378,8.21621787,226.24,226.17,8.21621787]
[1734091758152,8.21621787,226.24,226.18,8.21621787]
[1734091759270,1.6466,226.32,226.21,8.21621787]
[1734091759471,8.21621787,226.27,226.21,8.21621787]
[1734091760556,1.6466,226.32,226.22,8.21621787]
[1734091760765,8.21621787,226.3,226.23,8.21621787]
[1734091761680,8.21621787,226.29,226.23,8.21621787]
[1734091766184,8.21621787,226.3,226.24,8.21621787]
[1734091767285,8.21621787,226.31,226.24,8.21621787]
[1734091767491,8.051,226.38,226.27,8.21621787]
[1734091767668,8.051,226.38,226.28,8.21621787]
[1734091767873,8.21621787,226.34,226.28,8.21621787]
[1734091768662,8.21621787,226.33,226.27,8.21621787]
[1734091768863,8.21621787,226.33,226.26,28.21621787]
[1734091769064,8.051,226.38,226.26,28.21621787]
[1734091769285,8.21621787,226.33,226.26,28.21621787]
[1734091771182,8.21621787,226.31,226.26,20.0]
[1734091772894,8.051,226.38,226.26,28.21621787]
[1734091773095,8.21621787,226.32,226.26,28.21621787]
[1734091774476,8.21621787,226.31,226.26,20.0]
[1734091775889,8.21621787,226.3,226.24,8.21621787]
[1734091776490,8.051,226.38,226.26,8.21621787]
[1734091776666,8.21621787,226.32,226.26,8.21621787]
[1734091777994,8.21621787,226.31,226.25,8.21621787]
[1734091778293,8.21621787,226.31,226.24,8.46719787]
[1734091778473,8.21621787,226.31,226.25,23.776884]
[1734091779081,8.21621787,226.31,226.25,8.21621787]
[1734091779597,8.051,226.38,226.26,32.24408187]
[1734091779775,8.051,226.38,226.29,8.21621787]
[1734091779976,8.21621787,226.35,226.29,8.21621787]
[1734091784079,8.21621787,226.34,226.28,28.21621787]
[1734091784278,8.21621787,226.33,226.28,20.0]
[1734091785307,8.21621787,226.31,226.25,8.21621787]
[1734091785479,8.21621787,226.31,226.26,23.776884]
[1734091787986,8.21621787,226.31,226.25,8.21621787]
[1734091788181,8.21621787,226.31,226.23,23.776884]
[1734091788386,8.21621787,226.31,226.24,8.21621787]
[1734091789596,8.21621787,226.3,226.23,31.99310187]
[1734091790101,8.21621787,226.29,226.23,31.99310187]
[1734091790401,8.21621787,226.29,226.23,23.776884]
[1734091790781,8.21621787,226.29,226.23,31.99310187]
[1734091791200,8.21621787,226.29,226.23,8.21621787]
[1734091791409,8.21621787,226.29,226.19,2.17051634]
[1734091791698,51.95917148,226.38,226.22,8.21621787]
[1734091791699,19.0943,226.38,226.22,8.21621787]
[1734091791890,8.21621787,226.29,226.22,8.21621787]
[1734091792886,8.21621787,226.26,226.2,8.21621787]
[1734091793097,8.21621787,226.29,226.22,8.21621787]
[1734091793281,8.21621787,226.29,226.23,8.21621787]
[1734091793482,8.21621787,226.3,226.23,8.21621787]
[1734091796800,1.5106,226.31,226.23,8.21621787]
[1734091797005,8.21621787,226.3,226.23,8.21621787]
[1734091797207,8.21621787,226.3,226.24,8.21621787]
[1734091799788,8.21621787,226.29,226.22,51.99310187]
[1734091802310,8.21621787,226.28,226.22,51.99310187]
[1734091803485,8.21621787,226.29,226.22,23.776884]
[1734091803709,8.21621787,226.29,226.22,8.21621787]
[1734091804311,8.21621787,226.28,226.2,24.027864]
[1734091804511,1.5106,226.31,226.2,31.99310187]
[1734091804718,8.21621787,226.28,226.22,8.21621787]
[1734091805589,8.21621787,226.29,226.23,8.21621787]
[1734091807190,1.5106,226.31,226.23,8.21621787]
[1734091807395,8.21621787,226.29,226.23,8.21621787]
[1734091813116,8.21621787,226.29,226.2,0.25098]
[1734091813304,8.21621787,226.26,226.19,30.72670801]
[1734091813622,8.21621787,226.26,226.2,8.21621787]
[1734091813999,1.5106,226.31,226.2,8.21621787]
[1734091814206,8.21621787,226.26,226.2,8.21621787]
[1734091814708,8.21621787,226.28,226.21,8.21621787]
[1734091815525,1.5106,226.31,226.22,8.21621787]
[1734091815709,8.21621787,226.29,226.23,8.21621787]
[1734091818431,8.21621787,226.3,226.23,8.21621787]
[1734091820321,8.21621787,226.29,226.23,8.21621787]
[1734091821115,8.21621787,226.29,226.22,8.21621787]
[1734091823454,8.21621787,226.3,226.23,8.21621787]
[1734091825932,22.6278205,226.32,226.24,8.21621787]
[1734091826238,22.6278205,226.32,226.27,8.21621787]
[1734091826617,22.6278205,226.32,226.25,0.66286122]
[1734091826618,22.6278205,226.32,226.28,8.21621787]
[1734091827231,22.6278205,226.32,226.27,8.21621787]
[1734091827536,8.21621787,226.3,226.24,14.47301787]
[1734091828620,8.21621787,226.29,226.23,8.21621787]